[Event "Early-Titled-Tuesday-Blitz-September-26-2023"]
[Site "Chess.com"]
[Date "2023.09.26"]
[Round "5"]
[White "hakanazeri2"]
[Black "Gerasimenyuk_Miha"]
[Result "1-0"]
[WhiteElo "2591"]
[BlackElo "2414"]
[TimeControl "180+1"]
[EndTime "8:55:49 PDT"]
[Termination "hakanazeri2 won by resignation"]

1. Nf3 {[%clk 0:03:00.9]} 1... d5 {[%clk 0:02:59.8]} 2. d4 {[%clk 0:02:58.4]}
2... c6 {[%clk 0:03:00.4]} 3. c4 {[%clk 0:02:43.5]} 3... Nf6 {[%clk 0:03:01.2]}
4. Nc3 {[%clk 0:02:43.7]} 4... Bg4 {[%clk 0:03:00.4]} 5. Ne5 {[%clk 0:02:41.5]}
5... Bh5 {[%clk 0:03:00.3]} 6. cxd5 {[%clk 0:02:39]} 6... Nxd5 {[%clk
0:02:54.2]} 7. Qb3 {[%clk 0:02:27.6]} 7... Nxc3 {[%clk 0:02:51.9]} 8. bxc3
{[%clk 0:02:27.9]} 8... Nd7 {[%clk 0:02:47.7]} 9. Nxd7 {[%clk 0:02:20.9]} 9...
Qxd7 {[%clk 0:02:46.7]} 10. e4 {[%clk 0:02:21.5]} 10... e5 {[%clk 0:02:45.8]}
11. Be3 {[%clk 0:02:19.9]} 11... exd4 {[%clk 0:02:44.3]} 12. cxd4 {[%clk
0:02:19.6]} 12... a5 {[%clk 0:02:41.3]} 13. a3 {[%clk 0:01:51.1]} 13... a4
{[%clk 0:02:38.3]} 14. Qc2 {[%clk 0:01:36.4]} 14... Bd6 {[%clk 0:02:27.7]} 15.
Bd3 {[%clk 0:01:35.8]} 15... O-O {[%clk 0:02:21]} 16. e5 {[%clk 0:01:35.9]}
16... Bc7 {[%clk 0:02:17.9]} 17. Bxh7+ {[%clk 0:01:36]} 17... Kh8 {[%clk
0:02:17.8]} 18. Bf5 {[%clk 0:01:29.1]} 18... Qe7 {[%clk 0:02:14.2]} 19. O-O
{[%clk 0:01:25.9]} 19... f6 {[%clk 0:02:13.4]} 20. f4 {[%clk 0:01:22.7]} 20...
fxe5 {[%clk 0:02:12.2]} 21. fxe5 {[%clk 0:01:23.3]} 21... c5 {[%clk 0:02:09.9]}
22. g4 {[%clk 0:01:00.2]} 22... cxd4 {[%clk 0:02:08]} 23. Bxd4 {[%clk
0:00:59.9]} 23... Bf7 {[%clk 0:01:47]} 24. Qc3 {[%clk 0:00:43]} 24... Rad8
{[%clk 0:01:38.3]} 25. Qh3+ {[%clk 0:00:41.1]} 1-0

[Event "Early-Titled-Tuesday-Blitz-September-26-2023"]
[Site "Chess.com"]
[Date "2023.09.26"]
[Round "5"]
[White "jeetjain"]
[Black "DuleMudule"]
[Result "0-1"]
[WhiteElo "2591"]
[BlackElo "2772"]
[TimeControl "180+1"]
[EndTime "8:55:52 PDT"]
[Termination "DuleMudule won by resignation"]

1. d4 {[%clk 0:02:59.7]} 1... d5 {[%clk 0:02:58.9]} 2. Nf3 {[%clk 0:02:59.6]}
2... Bf5 {[%clk 0:02:58.1]} 3. Bf4 {[%clk 0:02:58.9]} 3... c5 {[%clk 0:02:57.7]}
4. c3 {[%clk 0:02:58]} 4... Nc6 {[%clk 0:02:54.8]} 5. e3 {[%clk 0:02:58.1]} 5...
Qb6 {[%clk 0:02:53.5]} 6. Qc1 {[%clk 0:02:42.2]} 6... e6 {[%clk 0:02:52.6]} 7.
Nbd2 {[%clk 0:02:34.8]} 7... h6 {[%clk 0:02:51.3]} 8. Be2 {[%clk 0:02:25]} 8...
Nf6 {[%clk 0:02:50.6]} 9. O-O {[%clk 0:02:25]} 9... Rc8 {[%clk 0:02:49.7]} 10.
dxc5 {[%clk 0:02:21.2]} 10... Bxc5 {[%clk 0:02:49.2]} 11. Nb3 {[%clk 0:02:18]}
11... Be7 {[%clk 0:02:48.7]} 12. Qd1 {[%clk 0:02:15.7]} 12... O-O {[%clk
0:02:47]} 13. Nfd4 {[%clk 0:02:13.8]} 13... Bg6 {[%clk 0:02:46]} 14. Bd3 {[%clk
0:02:13.2]} 14... Ne4 {[%clk 0:02:40.7]} 15. Nxc6 {[%clk 0:02:10]} 15... bxc6
{[%clk 0:02:39.1]} 16. f3 {[%clk 0:02:02.1]} 16... e5 {[%clk 0:02:38.7]} 17.
fxe4 {[%clk 0:01:44.7]} 17... exf4 {[%clk 0:02:37.9]} 18. Qf3 {[%clk 0:01:31]}
18... fxe3 {[%clk 0:02:30.4]} 19. Kh1 {[%clk 0:01:27.3]} 19... dxe4 {[%clk
0:02:27.1]} 20. Bxe4 {[%clk 0:01:27.2]} 20... Bxe4 {[%clk 0:02:25.6]} 21. Qxe4
{[%clk 0:01:28.1]} 21... Rce8 {[%clk 0:02:24.7]} 22. Nd4 {[%clk 0:01:22.8]}
22... Bc5 {[%clk 0:02:19.5]} 23. Qg4 {[%clk 0:01:12.3]} 23... Bxd4 {[%clk
0:02:15.8]} 24. cxd4 {[%clk 0:01:11.1]} 24... e2 {[%clk 0:02:14.3]} 25. Rfe1
{[%clk 0:01:09.9]} 25... Qxb2 {[%clk 0:02:14.1]} 26. a4 {[%clk 0:01:07]} 26...
Re6 {[%clk 0:02:12.2]} 27. h3 {[%clk 0:01:00.8]} 27... Rd8 {[%clk 0:02:10.7]}
28. Rac1 {[%clk 0:00:56.7]} 28... Qxd4 {[%clk 0:02:09.5]} 29. Qf3 {[%clk
0:00:55.9]} 29... Qd2 {[%clk 0:02:08]} 30. Rb1 {[%clk 0:00:52.5]} 30... Rde8
{[%clk 0:02:04.9]} 31. Rbc1 {[%clk 0:00:47.5]} 31... Rf6 {[%clk 0:02:00.8]} 32.
Qb3 {[%clk 0:00:38.1]} 32... Qxc1 {[%clk 0:01:55.6]} 0-1

[Event "Early-Titled-Tuesday-Blitz-September-26-2023"]
[Site "Chess.com"]
[Date "2023.09.26"]
[Round "5"]
[White "Qvalda"]
[Black "TheRigos"]
[Result "0-1"]
[WhiteElo "2369"]
[BlackElo "2578"]
[TimeControl "180+1"]
[EndTime "8:55:57 PDT"]
[Termination "TheRigos won by resignation"]

1. Nf3 {[%clk 0:03:00.9]} 1... d5 {[%clk 0:02:47.9]} 2. e3 {[%clk 0:03:00.1]}
2... Nf6 {[%clk 0:02:45.5]} 3. b3 {[%clk 0:02:59.9]} 3... g6 {[%clk 0:02:44.1]}
4. Bb2 {[%clk 0:02:59.2]} 4... Bg7 {[%clk 0:02:45]} 5. d4 {[%clk 0:02:59]} 5...
O-O {[%clk 0:02:45.4]} 6. Be2 {[%clk 0:02:59.6]} 6... c5 {[%clk 0:02:42.8]} 7.
O-O {[%clk 0:02:59.5]} 7... cxd4 {[%clk 0:02:43.4]} 8. Nxd4 {[%clk 0:02:58.1]}
8... b6 {[%clk 0:02:35.3]} 9. c4 {[%clk 0:02:57.2]} 9... Bb7 {[%clk 0:02:29.1]}
10. Nc3 {[%clk 0:02:55.3]} 10... dxc4 {[%clk 0:02:27.4]} 11. Bxc4 {[%clk
0:02:56.2]} 11... Nbd7 {[%clk 0:02:25.1]} 12. Qe2 {[%clk 0:02:47.4]} 12... a6
{[%clk 0:02:24.9]} 13. Rfd1 {[%clk 0:02:45.6]} 13... b5 {[%clk 0:02:24]} 14. Bd3
{[%clk 0:02:44.3]} 14... Qb6 {[%clk 0:02:22.9]} 15. Rac1 {[%clk 0:02:41.7]}
15... Rfd8 {[%clk 0:01:54.5]} 16. Bb1 {[%clk 0:02:29.1]} 16... Rac8 {[%clk
0:01:46.4]} 17. Nf3 {[%clk 0:02:27.6]} 17... Nc5 {[%clk 0:01:31.2]} 18. h3
{[%clk 0:02:25.1]} 18... b4 {[%clk 0:01:26.1]} 19. Na4 {[%clk 0:02:23.8]} 19...
Nxa4 {[%clk 0:01:26]} 20. bxa4 {[%clk 0:02:23.8]} 20... a5 {[%clk 0:01:24.6]}
21. Rxc8 {[%clk 0:02:16.2]} 21... Rxc8 {[%clk 0:01:23.5]} 22. Nd4 {[%clk
0:02:15.5]} 22... Nd5 {[%clk 0:01:19.5]} 23. Be4 {[%clk 0:02:02.2]} 23... Nc3
{[%clk 0:01:16.8]} 24. Bxc3 {[%clk 0:01:59.4]} 24... Bxe4 {[%clk 0:01:14.7]} 25.
Ba1 {[%clk 0:01:47.4]} 25... Bd5 {[%clk 0:01:04.2]} 26. Nb3 {[%clk 0:01:43.4]}
26... Bc4 {[%clk 0:01:01.1]} 27. Qg4 {[%clk 0:01:39.8]} 27... Be6 {[%clk
0:01:01.4]} 28. Bd4 {[%clk 0:01:29]} 28... Bxg4 {[%clk 0:00:57]} 29. Bxb6 {[%clk
0:01:27.8]} 29... Bxd1 {[%clk 0:00:56.9]} 30. Nxa5 {[%clk 0:01:25.8]} 30... Bxa4
{[%clk 0:00:56.1]} 0-1

[Event "Early-Titled-Tuesday-Blitz-September-26-2023"]
[Site "Chess.com"]
[Date "2023.09.26"]
[Round "5"]
[White "Andrej2004"]
[Black "Vanina1989"]
[Result "0-1"]
[WhiteElo "2557"]
[BlackElo "2715"]
[TimeControl "180+1"]
[EndTime "8:55:59 PDT"]
[Termination "Vanina1989 won by resignation"]

1. Nf3 {[%clk 0:02:57.9]} 1... d5 {[%clk 0:02:59.6]} 2. g3 {[%clk 0:02:56.3]}
2... c6 {[%clk 0:03:00]} 3. b3 {[%clk 0:02:50.5]} 3... Bg4 {[%clk 0:02:59.2]} 4.
Bb2 {[%clk 0:02:50.9]} 4... Nd7 {[%clk 0:02:55.5]} 5. Bg2 {[%clk 0:02:50.1]}
5... Bxf3 {[%clk 0:02:55.4]} 6. exf3 {[%clk 0:02:50]} 6... e5 {[%clk 0:02:55.1]}
7. O-O {[%clk 0:02:47.2]} 7... Bd6 {[%clk 0:02:55.3]} 8. d4 {[%clk 0:02:46.6]}
8... Ne7 {[%clk 0:02:54.4]} 9. Re1 {[%clk 0:02:45.6]} 9... Qc7 {[%clk 0:02:43]}
10. dxe5 {[%clk 0:02:35.4]} 10... Bxe5 {[%clk 0:02:39.1]} 11. Bxe5 {[%clk
0:02:31.8]} 11... Nxe5 {[%clk 0:02:38.9]} 12. Qd4 {[%clk 0:02:23.2]} 12... f6
{[%clk 0:02:21.1]} 13. f4 {[%clk 0:02:17.2]} 13... Nf7 {[%clk 0:02:18]} 14. Qe3
{[%clk 0:02:12.4]} 14... Nd6 {[%clk 0:02:14.6]} 15. Nc3 {[%clk 0:02:09.9]} 15...
Nf5 {[%clk 0:02:12.2]} 16. Qe6 {[%clk 0:01:59.3]} 16... Qd7 {[%clk 0:02:12.1]}
17. Qe2 {[%clk 0:01:07.1]} 17... Kf7 {[%clk 0:02:11.7]} 18. Qd3 {[%clk 0:01:04]}
18... Rad8 {[%clk 0:02:04.1]} 19. g4 {[%clk 0:00:53.1]} 19... Nh4 {[%clk
0:01:58.3]} 20. Bh3 {[%clk 0:00:50.8]} 20... g5 {[%clk 0:01:55.5]} 21. fxg5
{[%clk 0:00:47.4]} 21... fxg5 {[%clk 0:01:54.2]} 22. f4 {[%clk 0:00:41.6]} 22...
Neg6 {[%clk 0:01:44.7]} 23. fxg5 {[%clk 0:00:39.3]} 23... Rhf8 {[%clk
0:01:42.3]} 24. Ne4 {[%clk 0:00:37.3]} 24... dxe4 {[%clk 0:01:38.1]} 25. Qxe4
{[%clk 0:00:35.8]} 25... Qd4+ {[%clk 0:01:35]} 0-1

[Event "Early-Titled-Tuesday-Blitz-September-26-2023"]
[Site "Chess.com"]
[Date "2023.09.26"]
[Round "5"]
[White "chezzgirl04"]
[Black "Oleksandr_Bortnyk"]
[Result "0-1"]
[WhiteElo "2190"]
[BlackElo "3023"]
[TimeControl "180+1"]
[EndTime "8:56:02 PDT"]
[Termination "Oleksandr_Bortnyk won on time"]

1. e4 {[%clk 0:03:00.9]} 1... Nf6 {[%clk 0:03:00]} 2. e5 {[%clk 0:03:00.5]} 2...
Nd5 {[%clk 0:03:00.5]} 3. d4 {[%clk 0:03:00.9]} 3... d6 {[%clk 0:03:01]} 4. c4
{[%clk 0:03:01.3]} 4... Nb6 {[%clk 0:03:01.4]} 5. exd6 {[%clk 0:03:01.5]} 5...
exd6 {[%clk 0:03:02.3]} 6. Nc3 {[%clk 0:03:01.3]} 6... Be7 {[%clk 0:03:03]} 7.
Nf3 {[%clk 0:03:01.5]} 7... O-O {[%clk 0:03:03.1]} 8. Bd3 {[%clk 0:03:01.7]}
8... Bg4 {[%clk 0:03:03.3]} 9. O-O {[%clk 0:02:57.1]} 9... Bf6 {[%clk
0:03:03.4]} 10. Be3 {[%clk 0:02:56.4]} 10... Nc6 {[%clk 0:03:03.5]} 11. c5
{[%clk 0:02:41.3]} 11... dxc5 {[%clk 0:03:02.9]} 12. dxc5 {[%clk 0:02:41.6]}
12... Nd7 {[%clk 0:03:02.3]} 13. Rc1 {[%clk 0:02:36.2]} 13... Nde5 {[%clk
0:03:01.1]} 14. Be2 {[%clk 0:02:24.4]} 14... Nxf3+ {[%clk 0:02:59.9]} 15. Bxf3
{[%clk 0:02:22.9]} 15... Qxd1 {[%clk 0:03:00.8]} 16. Bxd1 {[%clk 0:02:22.5]}
16... Be6 {[%clk 0:03:00.6]} 17. Bf3 {[%clk 0:02:18.8]} 17... Rfd8 {[%clk
0:03:00.7]} 18. a3 {[%clk 0:02:09.7]} 18... a6 {[%clk 0:03:00.6]} 19. b4 {[%clk
0:02:06.8]} 19... Rab8 {[%clk 0:03:00.8]} 20. Ne4 {[%clk 0:02:06.7]} 20... Bb2
{[%clk 0:03:00.4]} 21. Rb1 {[%clk 0:01:41.6]} 21... Bxa3 {[%clk 0:03:01]} 22.
Ng5 {[%clk 0:01:41.4]} 22... Bf5 {[%clk 0:03:01]} 23. Rb3 {[%clk 0:01:40.1]}
23... Bxb4 {[%clk 0:03:01.6]} 24. Bf4 {[%clk 0:01:25.4]} 24... Rd7 {[%clk
0:03:02.3]} 25. g4 {[%clk 0:00:50.4]} 25... Bg6 {[%clk 0:03:02.3]} 26. h4 {[%clk
0:00:49.8]} 26... h6 {[%clk 0:03:02.3]} 27. Nh3 {[%clk 0:00:45.7]} 27... a5
{[%clk 0:03:02.2]} 28. h5 {[%clk 0:00:45.4]} 28... Bh7 {[%clk 0:03:01.4]} 29. g5
{[%clk 0:00:45.7]} 29... Nd4 {[%clk 0:03:01.7]} 30. Re3 {[%clk 0:00:42.6]} 30...
Nxf3+ {[%clk 0:03:02.2]} 31. Rxf3 {[%clk 0:00:43]} 31... Bxc5 {[%clk 0:03:02.8]}
32. gxh6 {[%clk 0:00:41.6]} 32... gxh6 {[%clk 0:03:00.9]} 33. Rg3+ {[%clk
0:00:41.2]} 33... Kf8 {[%clk 0:03:01.4]} 34. Bxh6+ {[%clk 0:00:40.9]} 34... Ke7
{[%clk 0:03:02.2]} 35. Re1+ {[%clk 0:00:22.6]} 35... Kd6 {[%clk 0:03:02.7]} 36.
Rc3 {[%clk 0:00:13.6]} 36... b6 {[%clk 0:03:02.5]} 37. Be3 {[%clk 0:00:10.6]}
37... Rg8+ {[%clk 0:03:02.4]} 38. Kf1 {[%clk 0:00:06.7]} 38... Bxe3 {[%clk
0:03:02.4]} 39. Rd1+ {[%clk 0:00:04.1]} 39... Ke7 {[%clk 0:03:02.3]} 40. Rxe3+
{[%clk 0:00:04.2]} 40... Kd8 {[%clk 0:03:03.1]} 41. Rde1 {[%clk 0:00:02.3]}
41... Bf5 {[%clk 0:03:03.1]} 42. Nf4 {[%clk 0:00:02.1]} 42... a4 {[%clk
0:03:03.5]} 43. h6 {[%clk 0:00:02.2]} 43... c5 {[%clk 0:03:03.1]} 44. f3 {[%clk
0:00:01.5]} 44... Rd4 {[%clk 0:03:02.8]} 45. Nh5 {[%clk 0:00:01.7]} 45... Bh3+
{[%clk 0:03:02.7]} 46. Kf2 {[%clk 0:00:01.4]} 46... Rg2+ {[%clk 0:03:03.6]} 47.
Kf1 {[%clk 0:00:01.8]} 47... Rg5+ {[%clk 0:03:03.4]} 48. Kf2 {[%clk 0:00:01.5]}
48... Rd2+ {[%clk 0:03:03.3]} 49. R1e2 {[%clk 0:00:01.3]} 49... Rxe2+ {[%clk
0:03:04.2]} 50. Rxe2 {[%clk 0:00:01.1]} 50... Rxh5 {[%clk 0:03:05.1]} 0-1

[Event "Early-Titled-Tuesday-Blitz-September-26-2023"]
[Site "Chess.com"]
[Date "2023.09.26"]
[Round "5"]
[White "amelia91"]
[Black "LileKoridze"]
[Result "1-0"]
[WhiteElo "2152"]
[BlackElo "2355"]
[TimeControl "180+1"]
[EndTime "8:56:04 PDT"]
[Termination "amelia91 won by resignation"]

1. d4 {[%clk 0:02:58.7]} 1... Nf6 {[%clk 0:02:59.6]} 2. Bf4 {[%clk 0:02:57.6]}
2... d5 {[%clk 0:02:57.8]} 3. e3 {[%clk 0:02:57.6]} 3... e6 {[%clk 0:02:57.6]}
4. Nf3 {[%clk 0:02:56.3]} 4... c6 {[%clk 0:02:57.7]} 5. Bd3 {[%clk 0:02:55.9]}
5... Bd6 {[%clk 0:02:56.1]} 6. Ne5 {[%clk 0:02:54.4]} 6... O-O {[%clk
0:02:54.9]} 7. Nd2 {[%clk 0:02:54.5]} 7... Qc7 {[%clk 0:02:54.9]} 8. Bg3 {[%clk
0:02:53.9]} 8... c5 {[%clk 0:02:54.1]} 9. c3 {[%clk 0:02:54.2]} 9... a6 {[%clk
0:02:53.5]} 10. f4 {[%clk 0:02:51.6]} 10... b5 {[%clk 0:02:49.8]} 11. O-O {[%clk
0:02:49.5]} 11... Bb7 {[%clk 0:02:49.7]} 12. Qf3 {[%clk 0:02:46]} 12... Nbd7
{[%clk 0:02:47.8]} 13. Bh4 {[%clk 0:02:38.3]} 13... b4 {[%clk 0:02:17.7]} 14.
cxb4 {[%clk 0:02:23.3]} 14... cxb4 {[%clk 0:02:16]} 15. g4 {[%clk 0:02:14.2]}
15... Rfc8 {[%clk 0:01:17.7]} 16. g5 {[%clk 0:02:09]} 16... Ne8 {[%clk
0:01:16.7]} 17. Bxh7+ {[%clk 0:02:04.6]} 17... Kxh7 {[%clk 0:01:04.8]} 18. Qh5+
{[%clk 0:02:04.1]} 18... Kg8 {[%clk 0:01:05]} 19. Qxf7+ {[%clk 0:02:03.9]} 19...
Kh7 {[%clk 0:01:05.3]} 20. Nxd7 {[%clk 0:01:46.2]} 20... Bc6 {[%clk 0:01:01]}
21. Qh5+ {[%clk 0:01:31.6]} 21... Kg8 {[%clk 0:01:00.8]} 22. g6 {[%clk
0:01:20.9]} 22... Nf6 {[%clk 0:00:48.3]} 23. Nxf6+ {[%clk 0:01:20.1]} 23... gxf6
{[%clk 0:00:48.7]} 24. Bxf6 {[%clk 0:01:19.5]} 1-0

[Event "Early-Titled-Tuesday-Blitz-September-26-2023"]
[Site "Chess.com"]
[Date "2023.09.26"]
[Round "5"]
[White "GG91"]
[Black "viktorgen2021"]
[Result "1-0"]
[WhiteElo "2256"]
[BlackElo "2454"]
[TimeControl "180+1"]
[EndTime "8:56:07 PDT"]
[Termination "GG91 won by resignation"]

1. d4 {[%clk 0:03:00.9]} 1... Nf6 {[%clk 0:02:41.4]} 2. Nf3 {[%clk 0:03:01.8]}
2... g6 {[%clk 0:02:41.3]} 3. e3 {[%clk 0:03:00.6]} 3... Bg7 {[%clk 0:02:41.1]}
4. Bd3 {[%clk 0:03:01.2]} 4... O-O {[%clk 0:02:41.5]} 5. O-O {[%clk 0:03:01.6]}
5... d6 {[%clk 0:02:42.4]} 6. b3 {[%clk 0:03:01.9]} 6... b6 {[%clk 0:02:43.3]}
7. Bb2 {[%clk 0:03:02.3]} 7... Bb7 {[%clk 0:02:44.2]} 8. Nbd2 {[%clk 0:03:02.7]}
8... Nbd7 {[%clk 0:02:44.9]} 9. c4 {[%clk 0:03:02.9]} 9... c5 {[%clk 0:02:45.2]}
10. Re1 {[%clk 0:03:01.2]} 10... d5 {[%clk 0:02:42]} 11. Rc1 {[%clk 0:02:54.6]}
11... e6 {[%clk 0:02:39.6]} 12. Ne5 {[%clk 0:02:44.8]} 12... Nxe5 {[%clk
0:02:37.4]} 13. dxe5 {[%clk 0:02:45.7]} 13... Nd7 {[%clk 0:02:35.5]} 14. f4
{[%clk 0:02:45.6]} 14... f6 {[%clk 0:02:32.6]} 15. exf6 {[%clk 0:02:39.1]} 15...
Bxf6 {[%clk 0:02:30.6]} 16. Bxf6 {[%clk 0:02:38.5]} 16... Qxf6 {[%clk 0:02:30]}
17. Nf3 {[%clk 0:02:38.1]} 17... e5 {[%clk 0:02:26.6]} 18. cxd5 {[%clk
0:02:28.9]} 18... exf4 {[%clk 0:02:13.8]} 19. e4 {[%clk 0:02:27]} 19... Ne5
{[%clk 0:02:11]} 20. Bc4 {[%clk 0:02:20.5]} 20... g5 {[%clk 0:02:04.1]} 21. Nxe5
{[%clk 0:02:14.2]} 21... Qxe5 {[%clk 0:02:03]} 22. Qg4 {[%clk 0:02:07.7]} 22...
Kg7 {[%clk 0:01:56.4]} 23. Rcd1 {[%clk 0:02:03.5]} 23... f3 {[%clk 0:01:55.6]}
24. gxf3 {[%clk 0:01:55.6]} 24... Rf4 {[%clk 0:01:54.8]} 25. Qd7+ {[%clk
0:01:50.2]} 25... Rf7 {[%clk 0:01:54.4]} 26. Qg4 {[%clk 0:01:50.2]} 26... h5
{[%clk 0:01:44.9]} 27. Qg3 {[%clk 0:01:44]} 27... Rf4 {[%clk 0:01:38.7]} 28. d6
{[%clk 0:01:41.4]} 28... Raf8 {[%clk 0:01:33]} 29. d7 {[%clk 0:01:37.5]} 29...
Qf6 {[%clk 0:01:30.9]} 30. Re3 {[%clk 0:01:30.2]} 30... Kh6 {[%clk 0:01:20.4]}
31. e5 {[%clk 0:01:30.1]} 31... Qe7 {[%clk 0:01:16.8]} 32. e6 {[%clk 0:01:25.8]}
32... Rxf3 {[%clk 0:01:14.1]} 33. Rxf3 {[%clk 0:01:23.8]} 33... Bxf3 {[%clk
0:01:13.3]} 34. d8=Q {[%clk 0:01:18.9]} 34... Rxd8 {[%clk 0:01:07.4]} 35. Rxd8
{[%clk 0:01:16.5]} 1-0

[Event "Early-Titled-Tuesday-Blitz-September-26-2023"]
[Site "Chess.com"]
[Date "2023.09.26"]
[Round "5"]
[White "Jagerrmeisterr"]
[Black "whitemirrorninja"]
[Result "1-0"]
[WhiteElo "2684"]
[BlackElo "2476"]
[TimeControl "180+1"]
[EndTime "8:56:09 PDT"]
[Termination "Jagerrmeisterr won by resignation"]

1. e4 {[%clk 0:03:00.9]} 1... c5 {[%clk 0:02:59.7]} 2. Nc3 {[%clk 0:03:01.1]}
2... e6 {[%clk 0:02:59.1]} 3. f4 {[%clk 0:03:01.4]} 3... Nc6 {[%clk 0:02:58.4]}
4. Nf3 {[%clk 0:03:01.8]} 4... a6 {[%clk 0:02:58.1]} 5. g3 {[%clk 0:02:58.4]}
5... b5 {[%clk 0:02:57.5]} 6. Bg2 {[%clk 0:02:58.5]} 6... Bb7 {[%clk 0:02:58]}
7. O-O {[%clk 0:02:58.8]} 7... Nf6 {[%clk 0:02:53.3]} 8. e5 {[%clk 0:02:58.6]}
8... Nd5 {[%clk 0:02:52.7]} 9. Nxd5 {[%clk 0:02:49.1]} 9... exd5 {[%clk
0:02:53.6]} 10. c3 {[%clk 0:02:50]} 10... d6 {[%clk 0:02:45.1]} 11. d4 {[%clk
0:02:49.8]} 11... cxd4 {[%clk 0:02:42.1]} 12. cxd4 {[%clk 0:02:49.8]} 12... dxe5
{[%clk 0:02:42.1]} 13. fxe5 {[%clk 0:02:41]} 13... Be7 {[%clk 0:02:42.3]} 14. h4
{[%clk 0:02:27.9]} 14... O-O {[%clk 0:02:41.6]} 15. h5 {[%clk 0:02:22.2]} 15...
f6 {[%clk 0:02:35.9]} 16. h6 {[%clk 0:02:20.6]} 16... g6 {[%clk 0:02:19.1]} 17.
Be3 {[%clk 0:02:17.5]} 17... fxe5 {[%clk 0:02:06.7]} 18. dxe5 {[%clk 0:02:13]}
18... Na5 {[%clk 0:02:03.8]} 19. b3 {[%clk 0:02:10.3]} 19... Rc8 {[%clk
0:01:54.9]} 20. Qd2 {[%clk 0:02:04.9]} 20... Nc6 {[%clk 0:01:49.3]} 21. Rad1
{[%clk 0:02:02.6]} 21... Nb8 {[%clk 0:01:33.8]} 22. Bh3 {[%clk 0:02:02.8]} 22...
Rc7 {[%clk 0:01:32]} 23. Be6+ {[%clk 0:02:02.7]} 23... Kh8 {[%clk 0:01:32]} 24.
Ng5 {[%clk 0:02:03.4]} 24... d4 {[%clk 0:01:16]} 25. Qxd4 {[%clk 0:02:00.1]}
25... Bxg5 {[%clk 0:00:43.1]} 26. Bxg5 {[%clk 0:01:44.4]} 26... Rxf1+ {[%clk
0:00:41.8]} 27. Kxf1 {[%clk 0:01:44.9]} 1-0

[Event "Early-Titled-Tuesday-Blitz-September-26-2023"]
[Site "Chess.com"]
[Date "2023.09.26"]
[Round "5"]
[White "Caroexpert"]
[Black "Aanna12"]
[Result "1-0"]
[WhiteElo "2440"]
[BlackElo "2094"]
[TimeControl "180+1"]
[EndTime "8:56:20 PDT"]
[Termination "Caroexpert won on time"]

1. Nf3 {[%clk 0:02:55]} 1... Nf6 {[%clk 0:02:57]} 2. c4 {[%clk 0:02:54.4]} 2...
d6 {[%clk 0:02:56.3]} 3. d4 {[%clk 0:02:54]} 3... Nbd7 {[%clk 0:02:55.5]} 4. Nc3
{[%clk 0:02:53.1]} 4... e5 {[%clk 0:02:54.8]} 5. e4 {[%clk 0:02:53.1]} 5... Be7
{[%clk 0:02:54.6]} 6. Be2 {[%clk 0:02:53.4]} 6... O-O {[%clk 0:02:54.4]} 7. O-O
{[%clk 0:02:54.3]} 7... c6 {[%clk 0:02:53.4]} 8. Re1 {[%clk 0:02:54]} 8... Re8
{[%clk 0:02:47.3]} 9. Bf1 {[%clk 0:02:54.5]} 9... Qc7 {[%clk 0:02:43.6]} 10. b3
{[%clk 0:02:51.7]} 10... exd4 {[%clk 0:02:27.6]} 11. Nxd4 {[%clk 0:02:48.2]}
11... Nc5 {[%clk 0:02:26.6]} 12. Bf4 {[%clk 0:02:45.4]} 12... Nfd7 {[%clk
0:02:14.7]} 13. Nf5 {[%clk 0:02:41.7]} 13... Ne5 {[%clk 0:02:13.7]} 14. Nxe7+
{[%clk 0:02:37]} 14... Qxe7 {[%clk 0:02:13.7]} 15. Qd2 {[%clk 0:02:37.6]} 15...
Be6 {[%clk 0:01:52.6]} 16. Rad1 {[%clk 0:02:37.8]} 16... Rad8 {[%clk 0:01:49.1]}
17. f3 {[%clk 0:02:38.2]} 17... a5 {[%clk 0:01:46.8]} 18. Qf2 {[%clk 0:02:36]}
18... Bc8 {[%clk 0:01:39.1]} 19. Be3 {[%clk 0:02:29.6]} 19... h6 {[%clk
0:01:16.7]} 20. Rd2 {[%clk 0:02:29.8]} 20... Ng6 {[%clk 0:00:33.9]} 21. Red1
{[%clk 0:02:27.1]} 21... b6 {[%clk 0:00:30.5]} 22. Qg3 {[%clk 0:01:59.8]} 22...
Ne5 {[%clk 0:00:22.1]} 23. Bxh6 {[%clk 0:01:58.2]} 23... Ng6 {[%clk 0:00:07.2]}
24. Bg5 {[%clk 0:01:55.5]} 24... f6 {[%clk 0:00:06.4]} 25. Be3 {[%clk
0:01:52.5]} 25... Ne5 {[%clk 0:00:06.5]} 26. h3 {[%clk 0:01:49.7]} 1-0

[Event "Early-Titled-Tuesday-Blitz-September-26-2023"]
[Site "Chess.com"]
[Date "2023.09.26"]
[Round "5"]
[White "draksbg"]
[Black "MasterKroket"]
[Result "0-1"]
[WhiteElo "2644"]
[BlackElo "2431"]
[TimeControl "180+1"]
[EndTime "8:56:21 PDT"]
[Termination "MasterKroket won by checkmate"]

1. e4 {[%clk 0:02:59.3]} 1... e5 {[%clk 0:02:59.6]} 2. Nf3 {[%clk 0:02:58.9]}
2... Nc6 {[%clk 0:03:00.1]} 3. Bc4 {[%clk 0:02:58.3]} 3... Bc5 {[%clk
0:03:00.2]} 4. c3 {[%clk 0:02:57]} 4... Nf6 {[%clk 0:02:58.2]} 5. d4 {[%clk
0:02:57.7]} 5... exd4 {[%clk 0:02:58]} 6. cxd4 {[%clk 0:02:58.6]} 6... Bb4+
{[%clk 0:02:58.6]} 7. Bd2 {[%clk 0:02:59.5]} 7... Bxd2+ {[%clk 0:02:58.3]} 8.
Nbxd2 {[%clk 0:03:00.1]} 8... d5 {[%clk 0:02:58.7]} 9. exd5 {[%clk 0:03:00.7]}
9... Nxd5 {[%clk 0:02:59.3]} 10. Qb3 {[%clk 0:03:00.8]} 10... Nce7 {[%clk
0:02:59.5]} 11. O-O {[%clk 0:03:00.5]} 11... O-O {[%clk 0:02:58.9]} 12. Rfe1
{[%clk 0:03:00.7]} 12... c6 {[%clk 0:02:58.1]} 13. Qa3 {[%clk 0:02:59.6]} 13...
Ng6 {[%clk 0:02:49.9]} 14. Ne4 {[%clk 0:02:58.2]} 14... Nb6 {[%clk 0:02:43.2]}
15. Bb3 {[%clk 0:02:52.9]} 15... Bg4 {[%clk 0:02:41.6]} 16. Ne5 {[%clk
0:02:41.3]} 16... Nxe5 {[%clk 0:01:56.8]} 17. dxe5 {[%clk 0:02:41.8]} 17... Qd4
{[%clk 0:01:50]} 18. Nd6 {[%clk 0:02:39.3]} 18... c5 {[%clk 0:01:35.5]} 19. Rad1
{[%clk 0:02:37.4]} 19... Bxd1 {[%clk 0:01:34.6]} 20. Bxd1 {[%clk 0:02:36.3]}
20... Nc4 {[%clk 0:01:27.6]} 21. Nxc4 {[%clk 0:02:16.9]} 21... Qxc4 {[%clk
0:01:28.5]} 22. Bb3 {[%clk 0:02:15.1]} 22... Qb4 {[%clk 0:01:28.7]} 23. Qxb4
{[%clk 0:02:14]} 23... cxb4 {[%clk 0:01:29.6]} 24. f4 {[%clk 0:02:11.4]} 24...
Rad8 {[%clk 0:01:27.9]} 25. Re2 {[%clk 0:02:10.8]} 25... g6 {[%clk 0:01:23.7]}
26. Kf2 {[%clk 0:02:09.7]} 26... Kg7 {[%clk 0:01:23.9]} 27. Ke3 {[%clk
0:02:03.7]} 27... Rd7 {[%clk 0:01:21.6]} 28. Rc2 {[%clk 0:01:58.1]} 28... Rfd8
{[%clk 0:01:20.4]} 29. g3 {[%clk 0:01:44.7]} 29... Rd3+ {[%clk 0:01:15.1]} 30.
Ke2 {[%clk 0:01:44.4]} 30... b5 {[%clk 0:01:09.6]} 31. Rc7 {[%clk 0:01:37.4]}
31... R8d7 {[%clk 0:01:08.1]} 32. Rc5 {[%clk 0:01:23.9]} 32... Rd2+ {[%clk
0:01:06.4]} 33. Ke3 {[%clk 0:01:23.8]} 33... a6 {[%clk 0:00:51.5]} 34. h4 {[%clk
0:01:19.5]} 34... f5 {[%clk 0:00:51.3]} 35. e6 {[%clk 0:01:14.4]} 35... R7d3#
{[%clk 0:00:50.5]} 0-1